[Event "11th Dolomiti Open 2020"]
[Site "Forni di Sopra"]
[Date "2020.10.02"]
[Round "8.7"]
[White "Andolfatto, Maria"]
[Black "Tencati, Giuseppe"]
[Result "0-1"]
[ECO "D12"]
[WhiteElo "2002"]
[BlackElo "2095"]
[Annotator "ChessBase"]
[PlyCount "150"]
[EventDate "2020.09.26"]
[EventType "swiss"]
[EventCountry "ITA"]
[SourceTitle "playchess.com"]
[Source "ChessBase"]
[SourceQuality "1"]
[TimeControl "40/5400+30:1800+30"]

1. Nf3 {[%emt 0:00:00]} d5 {[%emt 0:00:00]} 2. c4 {[%emt 0:00:00]} c6 {[%emt 1:31:00]} 3. d4 {[%emt 0:00:00]} Nf6 {[%emt 1:31:26]} 4. e3 {[%emt 0:00:18]} Bf5 {[%emt 0:03:15]} 5. Nc3 {[%emt 0:02:27]} e6 {[%emt 0:00:28]} 6. Be2 {[%emt 0:01:21]} Nbd7 {[%emt 0:00:55]} 7. O-O {[%emt 0:00:46]} Bd6 {[%emt 0:02:27]} 8. b3 {[%emt 0:02:24]} h6 {[%emt 0:01:46]} 9. Bb2 {[%emt 0:01:19]} O-O {[%emt 0:00:19]} 10. Nd2 {[%emt 0:10:22]} Ne4 {[%emt 0:28:58]} 11. Bf3 {[%emt 0:19:36]} Ng5 {[%emt 0:03:30]} 12. Bg4 {[%emt 0:04:59]} Qf6 {[%emt 0:06:51]} 13. Bxf5 {[%emt 0:07:13]} Qxf5 {[%emt 0:00:14]} 14. Qe2 {[%emt 0:01:08]} Nf6 {[%emt 0:05:42]} 15. Rae1 {[%emt 0:09:23]} Qg6 {[%emt 0:42:24]} 16. f4 {[%emt 0:05:11]} Nge4 {[%emt 0:01:18]} 17. Ndxe4 {[%emt 0:06:50]} Nxe4 {[%emt 0:00:12]} 18. f5 {[%emt 0:03:32]} Nxc3 {[%emt 0:01:03]} 19. Bxc3 {[%emt 0:00:18]} exf5 {[%emt 0:00:36]} 20. Qf3 {[%emt 0:00:32]} dxc4 {[%emt 0:01:04]} 21. bxc4 {[%emt 0:00:25]} Rae8 {[%emt 0:01:46]} 22. c5 {[%emt 0:07:21]} Bb8 {[%emt 0:06:48]} 23. d5 {[%emt 0:00:32]} cxd5 {[%emt 0:01:29]} 24. Qxd5 {[%emt 0:00:08]} f4 {[%emt 0:06:27]} 25. exf4 {[%emt 0:01:34]} Rxe1 {[%emt 0:03:53]} 26. Bxe1 {[%emt 0:01:23]} b6 {[%emt 0:07:47]} 27. cxb6 {[%emt 0:02:45]} Qxb6+ {[%emt 0:00:21]} 28. Bf2 {[%emt 0:00:40]} Rd8 {[%emt 0:03:15]} 29. Bxb6 {[%emt 0:04:21]} Rxd5 {[%emt 0:00:07]} 30. Be3 {[%emt 0:00:22]} Rd3 {[%emt 0:13:30]} 31. Re1 {[%emt 0:00:45]} Ra3 {[%emt 0:01:00]} 32. Re2 {[%emt 0:02:26]} Ra4 {[%emt 0:11:54]} 33. g3 {[%emt 0:00:59]} Bd6 {[%emt 0:05:03]} 34. Rd2 {[%emt 0:01:26]} Bc7 {[%emt 0:02:57]} 35. Kf2 {[%emt 0:01:32]} Ba5 {[%emt 0:00:52]} 36. Rb2 {[%emt 0:01:15]} Bc3 {[%emt 0:00:34]} 37. Rc2 {[%emt 0:00:36]} Ba1 {[%emt 0:00:18]} 38. Rd2 {[%emt 0:01:15]} a5 {[%emt 0:04:52]} 39. Rc2 {[%emt 0:01:16]} f5 {[%emt 0:01:16]} 40. Bc5 {[%emt 0:00:45]} Kf7 {[%emt 0:01:16]} 41. h3 {[%emt 0:07:43]} Ke6 {[%emt 0:00:13]} 42. Kf3 {[%emt 0:01:14]} h5 {[%emt 0:00:49]} 43. g4 {[%emt 0:01:20]} g6 {[%emt 0:00:31]} 44. gxh5 {[%emt 0:08:20]} gxh5 {[%emt 0:00:13]} 45. Rd2 {[%emt 0:01:36]} Bf6 {[%emt 0:03:23]} 46. Rd6+ {[%emt 0:04:15]} Kf7 {[%emt 0:00:09]} 47. Rd2 {[%emt 0:02:20]} Rc4 {[%emt 0:00:34]} 48. Be3 {[%emt 0:00:51]} a4 {[%emt 0:01:17]} 49. Rd3 {[%emt 0:02:38]} Be7 {[%emt 0:00:30]} 50. Rd4 {[%emt 0:01:26]} Rxd4 {[%emt 0:00:10]} 51. Bxd4 {[%emt 0:00:03]} Ke6 {[%emt 0:00:07]} 52. Ke3 {[%emt 0:00:38]} Bd6 {[%emt 0:00:10]} 53. Kf3 {[%emt 0:03:58]} Kd5 {[%emt 0:00:09]} 54. Bf6 {[%emt 0:00:03]} Bb4 {[%emt 0:02:08]} 55. Ke3 {[%emt 0:01:02]} Kc4 {[%emt 0:01:01]} 56. Ke2 {[%emt 0:00:33]} Bc3 {[%emt 0:02:04]} 57. Be7 {[%emt 0:00:23]} Bb2 {[%emt 0:03:05]} 58. Kf3 {[%emt 0:00:36]} Bc3 {[%emt 0:01:21]} 59. Ke2 {[%emt 0:00:08]} Ba5 {[%emt 0:01:26]} 60. Ke3 {[%emt 0:00:33]} Kc3 {[%emt 0:00:28]} 61. Bf6+ {[%emt 0:00:50]} Kc2 {[%emt 0:00:18]} 62. Be7 {[%emt 0:00:29]} Bc3 {[%emt 0:00:36]} 63. Ba3 {[%emt 0:00:32]} Bd2+ {[%emt 0:00:41]} 64. Kf3 {[%emt 0:00:23]} Kb1 {[%emt 0:00:06]} 65. Bd6 {[%emt 0:00:36]} Kxa2 {[%emt 0:00:10]} 66. Ke2 {[%emt 0:00:09]} Bc1 {[%emt 0:00:55]} 67. Kd3 {[%emt 0:00:44]} Kb3 {[%emt 0:00:40]} 68. Kd4 {[%emt 0:00:21]} Bb2+ {[%emt 0:03:03]} 69. Kd5 {[%emt 0:00:33]} Ba3 {[%emt 0:20:54]} 70. Be5 {[%emt 0:00:18]} Bb4 {[%emt 0:00:12]} 71. Ke6 {[%emt 0:00:16]} a3 {[%emt 0:00:05]} 72. Kxf5 {[%emt 0:00:28]} a2 {[%emt 0:00:18]} 73. Kg5 {[%emt 0:00:51]} Bc3 {[%emt 0:00:07]} 74. Bxc3 {[%emt 0:00:08]} Kxc3 {[%emt 0:00:07]} 75. Kxh5 {[%emt 0:00:30]} a1=Q {[%emt 0:00:10]} 0-1

[Event "11th Dolomiti Open 2020"]
[Site "Forni di Sopra"]
[Date "2020.10.02"]
[Round "8.8"]
[White "Fecker, Noah"]
[Black "Marchesich, Giovanni"]
[Result "1/2-1/2"]
[ECO "C72"]
[WhiteElo "2345"]
[BlackElo "2063"]
[Annotator "ChessBase"]
[PlyCount "27"]
[EventDate "2020.09.26"]
[EventType "swiss"]
[EventCountry "ITA"]
[SourceTitle "playchess.com"]
[Source "ChessBase"]
[SourceQuality "1"]
[TimeControl "40/5400+30:1800+30"]

1. e4 {[%emt 0:00:00]} e5 {[%emt 0:00:00]} 2. Nf3 {[%emt 0:00:00]} Nc6 {[%emt 0:00:03]} 3. Bb5 {[%emt 0:00:00]} a6 {[%emt 0:00:22]} 4. Ba4 {[%emt 0:00:00]} d6 {[%emt 0:00:21]} 5. O-O {[%emt 0:00:02]} Bg4 {[%emt 0:00:31]} 6. h3 {[%emt 0:00:13]} h5 {[%emt 0:00:16]} 7. d4 {[%emt 0:01:23]} b5 {[%emt 0:00:39]} 8. Bb3 {[%emt 0:01:22]} Nxd4 {[%emt 0:00:33]} 9. hxg4 {[%emt 0:02:02]} Nxb3 {[%emt 0:01:06]} 10. axb3 {[%emt 0:01:21]} hxg4 {[%emt 0:00:22]} 11. Ng5 {[%emt 0:00:48]} Qd7 {[%emt 0:01:04]} 12. Nc3 {[%emt 0:08:03]} c6 {[%emt 0:03:44]} 13. Ne2 {[%emt 0:19:49]} f6 {[%emt 0:03:52]} 14. Ng3 {[%emt 1:01:57]} 1/2-1/2

[Event "11th Dolomiti Open 2020"]
[Site "Forni di Sopra"]
[Date "2020.10.02"]
[Round "8.9"]
[White "Bisignano, Giuseppe"]
[Black "Gasperi, Fosco"]
[Result "1-0"]
[ECO "B13"]
[WhiteElo "1818"]
[BlackElo "1802"]
[Annotator "NA"]
[PlyCount "35"]
[EventDate "2020.09.26"]
[EventType "swiss"]
[EventCountry "ITA"]
[SourceTitle "playchess.com"]
[Source "ChessBase"]
[SourceQuality "1"]
[TimeControl "40/5400+30:1800+30"]

1. e4 {[%emt 0:01:44]} c6 {[%emt 0:00:00]} 2. Nf3 {[%emt 0:00:18]} d5 {[%emt 0:00:19]} 3. exd5 {[%emt 0:00:10]} cxd5 {[%emt 0:00:20]} 4. d4 {[%emt 0:00:11]} Nc6 {[%emt 0:01:50]} 5. Nc3 {[%emt 0:00:44]} Bg4 {[%emt 0:04:04]} 6. Be2 {[%emt 0:02:57]} e6 {[%emt 0:01:37]} 7. O-O {[%emt 0:01:20]} Nf6 {[%emt 0:01:10]} 8. h3 {[%emt 0:02:11]} Bh5 {[%emt 0:01:05]} 9. Bg5 {[%emt 0:02:23]} Be7 {[%emt 0:04:50]} 10. Re1 {[%emt 0:00:53]} O-O {[%emt 0:02:58]} 11. Ne5 {[%emt 0:03:00]} Bxe2 {[%emt 0:08:06]} 12. Rxe2 {[%emt 0:00:18]} Rc8 {[%emt 0:02:07]} 13. Re3 {[%emt 0:07:06]} Re8 {[%emt 0:04:24]} 14. f4 {[%emt 0:05:55]} Nxd4 {[%emt 0:03:05]} 15. Bxf6 {[%emt 0:00:34]} gxf6 {[%emt 0:14:05]} 16. Rg3+ {[%emt 0:02:11]} Kf8 {[%emt 0:02:43]} 17. Qh5 {[%emt 0:00:32]} Ne2+ {[%emt 0:02:28]} 18. Kh2 {[%emt 0:01:04]} 1-0

[Event "11th Dolomiti Open 2020"]
[Site "Forni di Sopra"]
[Date "2020.10.03"]
[Round "9.1"]
[White "Valsecchi, Alessio"]
[Black "Bellia, Fabrizio"]
[Result "1/2-1/2"]
[ECO "C97"]
[WhiteElo "2491"]
[BlackElo "2421"]
[Annotator "ChessBase"]
[PlyCount "22"]
[EventDate "2020.09.26"]
[EventType "swiss"]
[EventCountry "ITA"]
[SourceTitle "playchess.com"]
[Source "ChessBase"]
[SourceQuality "1"]
[TimeControl "40/5400+30:1800+30"]

1. e4 {[%emt 0:00:00]} e5 {[%emt 0:00:00]} 2. Nf3 {[%emt 0:00:00]} Nc6 {[%emt 0:00:00]} 3. Bb5 {[%emt 0:00:00]} a6 {[%emt 0:00:00]} 4. Ba4 {[%emt 0:00:00]} Nf6 {[%emt 0:00:00]} 5. O-O {[%emt 0:00:05]} Be7 {[%emt 0:00:00]} 6. Re1 {[%emt 0:00:11]} b5 {[%emt 0:00:00]} 7. Bb3 {[%emt 0:00:06]} d6 {[%emt 0:00:00]} 8. c3 {[%emt 0:00:08]} O-O {[%emt 0:00:02]} 9. h3 {[%emt 0:00:05]} Na5 {[%emt 0:00:04]} 10. Bc2 {[%emt 0:00:06]} c5 {[%emt 0:00:05]} 11. d4 {[%emt 0:00:11]} Qc7 {[%emt 0:00:06]} 1/2-1/2

[Event "11th Dolomiti Open 2020"]
[Site "Forni di Sopra"]
[Date "2020.10.03"]
[Round "9.3"]
[White "Moroni, Luca Jr"]
[Black "Seresin, Francesco"]
[Result "1/2-1/2"]
[ECO "A45"]
[WhiteElo "2530"]
[BlackElo "2371"]
[Annotator "ChessBase"]
[PlyCount "60"]
[EventDate "2020.09.26"]
[EventType "swiss"]
[EventCountry "ITA"]
[SourceTitle "playchess.com"]
[Source "ChessBase"]
[SourceQuality "1"]
[TimeControl "40/5400+30:1800+30"]

1. d4 {[%emt 0:00:00]} Nf6 {[%emt 0:02:41]} 2. Bf4 {[%emt 0:00:00]} g6 {[%emt 0:01:58]} 3. Nc3 {[%emt 0:00:00]} d5 {[%emt 0:00:09]} 4. e3 {[%emt 0:00:00]} Bg7 {[%emt 0:02:28]} 5. Nb5 {[%emt 0:00:02]} Na6 {[%emt 0:01:27]} 6. h3 {[%emt 0:00:12]} O-O {[%emt 0:02:47]} 7. Nf3 {[%emt 0:00:33]} c6 {[%emt 0:03:34]} 8. Nc3 {[%emt 0:00:17]} Nc7 {[%emt 0:00:14]} 9. Bd3 {[%emt 0:01:17]} Ne6 {[%emt 0:05:17]} 10. Be5 {[%emt 0:00:28]} Nd7 {[%emt 0:07:32]} 11. Bxg7 {[%emt 0:01:32]} Kxg7 {[%emt 0:00:23]} 12. Qd2 {[%emt 0:02:19]} Nf6 {[%emt 0:06:34]} 13. g4 {[%emt 0:03:25]} h6 {[%emt 0:08:52]} 14. O-O-O {[%emt 0:04:59]} b5 {[%emt 0:05:40]} 15. Ne2 {[%emt 0:05:15]} c5 {[%emt 0:06:22]} 16. dxc5 {[%emt 0:06:09]} Nxc5 {[%emt 0:02:04]} 17. Rhg1 {[%emt 0:03:30]} Qb6 {[%emt 0:03:08]} 18. Kb1 {[%emt 0:05:29]} b4 {[%emt 0:04:41]} 19. g5 {[%emt 0:04:37]} hxg5 {[%emt 0:01:16]} 20. Nxg5 {[%emt 0:00:09]} e5 {[%emt 0:06:58]} 21. Ng3 {[%emt 0:00:48]} Rh8 {[%emt 0:00:51]} 22. f4 {[%emt 0:04:26]} Nxd3 {[%emt 0:05:15]} 23. Qxd3 {[%emt 0:01:34]} Ba6 {[%emt 0:04:34]} 24. Qd2 {[%emt 0:01:48]} exf4 {[%emt 0:01:39]} 25. exf4 {[%emt 0:01:15]} Rae8 {[%emt 0:00:31]} 26. h4 {[%emt 0:06:34]} Bc8 {[%emt 0:03:49]} 27. f5 {[%emt 0:05:34]} Rxh4 {[%emt 0:03:39]} 28. Nf3 {[%emt 0:04:37]} Rg4 {[%emt 0:02:32]} 29. fxg6 {[%emt 0:03:25]} fxg6 {[%emt 0:00:17]} 30. Rde1 {[%emt 0:16:57]} Ne4 {[%emt 0:07:48]} 1/2-1/2

[Event "11th Dolomiti Open 2020"]
[Site "Forni di Sopra"]
[Date "2020.10.03"]
[Round "9.4"]
[White "Gumularz, Szymon"]
[Black "Blohberger, Felix"]
[Result "1/2-1/2"]
[ECO "A49"]
[WhiteElo "2518"]
[BlackElo "2467"]
[Annotator "ChessBase"]
[PlyCount "75"]
[EventDate "2020.09.26"]
[EventType "swiss"]
[EventCountry "ITA"]
[SourceTitle "playchess.com"]
[Source "ChessBase"]
[SourceQuality "1"]
[TimeControl "40/5400+30:1800+30"]

1. Nf3 {[%emt 0:00:00]} Nf6 {[%emt 0:00:00]} 2. g3 {[%emt 0:01:02]} g6 {[%emt 0:00:00]} 3. b3 {[%emt 0:01:28]} Bg7 {[%emt 0:01:27]} 4. Bb2 {[%emt 0:00:04]} d6 {[%emt 0:00:27]} 5. d4 {[%emt 0:00:05]} c5 {[%emt 0:00:13]} 6. Bg2 {[%emt 0:04:20]} Qa5+ {[%emt 0:03:45]} 7. Qd2 {[%emt 0:07:22]} Qxd2+ {[%emt 0:00:36]} 8. Nbxd2 {[%emt 0:00:16]} Nfd7 {[%emt 0:01:01]} 9. O-O-O {[%emt 0:08:00]} Nc6 {[%emt 0:00:06]} 10. Nc4 {[%emt 0:07:16]} Rb8 {[%emt 0:07:09]} 11. d5 {[%emt 0:04:04]} Bxb2+ {[%emt 0:00:40]} 12. Kxb2 {[%emt 0:00:04]} Nce5 {[%emt 0:00:08]} 13. Nfxe5 {[%emt 0:03:46]} Nxe5 {[%emt 0:01:47]} 14. Nxe5 {[%emt 0:02:40]} dxe5 {[%emt 0:00:09]} 15. d6 {[%emt 0:18:13]} exd6 {[%emt 0:10:41]} 16. Rxd6 {[%emt 0:00:05]} Be6 {[%emt 0:00:22]} 17. Rhd1 {[%emt 0:00:40]} Ke7 {[%emt 0:01:24]} 18. R6d2 {[%emt 0:02:34]} b6 {[%emt 0:05:57]} 19. Bd5 {[%emt 0:00:18]} Rhd8 {[%emt 0:21:27]} 20. c4 {[%emt 0:01:48]} Bxd5 {[%emt 0:02:37]} 21. Rxd5 {[%emt 0:00:29]} Rxd5 {[%emt 0:03:17]} 22. Rxd5 {[%emt 0:00:06]} f6 {[%emt 0:02:06]} 23. Kc3 {[%emt 0:05:49]} Rd8 {[%emt 0:00:33]} 24. e4 {[%emt 0:01:57]} Rxd5 {[%emt 0:07:55]} 25. exd5 {[%emt 0:02:04]} f5 {[%emt 0:00:57]} 26. f3 {[%emt 0:05:06]} Kd6 {[%emt 0:00:41]} 27. Kd3 {[%emt 0:00:07]} Ke7 {[%emt 0:00:31]} 28. Ke3 {[%emt 0:01:25]} Kd6 {[%emt 0:00:19]} 29. Kf2 {[%emt 0:00:04]} Ke7 {[%emt 0:00:12]} 30. Kg2 {[%emt 0:14:33]} Kd6 {[%emt 0:00:40]} 31. Kh3 {[%emt 0:00:25]} Ke7 {[%emt 0:00:24]} 32. Kh4 {[%emt 0:00:52]} h6 {[%emt 0:00:18]} 33. Kh3 {[%emt 0:00:06]} Kd6 {[%emt 0:00:06]} 34. Kg2 {[%emt 0:00:05]} Ke7 {[%emt 0:00:09]} 35. a4 {[%emt 0:00:20]} a5 {[%emt 0:00:17]} 36. g4 {[%emt 0:03:13]} Kd6 {[%emt 0:00:53]} 37. h4 {[%emt 0:03:18]} h5 {[%emt 0:00:11]} 38. gxh5 {[%emt 0:00:06]} 1/2-1/2

[Event "11th Dolomiti Open 2020"]
[Site "Forni di Sopra"]
[Date "2020.10.03"]
[Round "9.5"]
[White "Tencati, Giuseppe"]
[Black "Cumming, Rhys"]
[Result "0-1"]
[ECO "C45"]
[WhiteElo "2095"]
[BlackElo "2299"]
[Annotator "ChessBase"]
[PlyCount "47"]
[EventDate "2020.09.26"]
[EventType "swiss"]
[EventCountry "ITA"]
[SourceTitle "playchess.com"]
[Source "ChessBase"]
[SourceQuality "1"]
[TimeControl "40/5400+30:1800+30"]

1. e4 {[%emt 0:00:00]} e5 {[%emt 0:08:12]} 2. Nf3 {[%emt 0:00:00]} Nc6 {[%emt 0:00:03]} 3. d4 {[%emt 0:00:00]} exd4 {[%emt 0:00:04]} 4. Nxd4 {[%emt 0:00:00]} Nf6 {[%emt 0:00:03]} 5. Nxc6 {[%emt 0:00:21]} bxc6 {[%emt 0:00:09]} 6. e5 {[%emt 0:00:18]} Qe7 {[%emt 0:00:04]} 7. Qe2 {[%emt 0:00:09]} Nd5 {[%emt 0:00:07]} 8. c4 {[%emt 0:00:13]} Nb6 {[%emt 0:00:30]} 9. Nc3 {[%emt 0:01:01]} Ba6 {[%emt 0:00:05]} 10. b3 {[%emt 0:30:20]} O-O-O {[%emt 0:00:24]} 11. Bb2 {[%emt 0:24:28]} Re8 {[%emt 0:00:20]} 12. f4 {[%emt 0:01:53]} f6 {[%emt 0:02:20]} 13. Ne4 {[%emt 0:07:21]} fxe5 {[%emt 0:00:20]} 14. fxe5 {[%emt 0:00:10]} d5 {[%emt 0:00:18]} 15. Nd2 {[%emt 0:00:53]} g6 {[%emt 0:01:32]} 16. O-O-O {[%emt 0:00:41]} Bg7 {[%emt 0:02:07]} 17. Re1 {[%emt 0:00:57]} c5 {[%emt 0:12:56]} 18. Qg4+ {[%emt 0:00:50]} Kb8 {[%emt 0:02:19]} 19. cxd5 {[%emt 0:00:28]} Bxf1 {[%emt 0:00:19]} 20. Rhxf1 {[%emt 0:00:09]} Nxd5 {[%emt 0:00:16]} 21. Kb1 {[%emt 0:02:49]} Rhf8 {[%emt 0:05:52]} 22. Nc4 {[%emt 0:03:22]} Rf7 {[%emt 1:02:40]} 23. Rf2 Rxf2 {[%emt 0:00:00]} 24. Rf1 {[%emt 0:00:39]} 0-1

[Event "11th Dolomiti Open 2020"]
[Site "Forni di Sopra"]
[Date "2020.10.03"]
[Round "9.6"]
[White "Fischer, Daniel"]
[Black "Barp, Alberto"]
[Result "1-0"]
[ECO "B12"]
[WhiteElo "2331"]
[BlackElo "2377"]
[Annotator "ChessBase"]
[PlyCount "99"]
[EventDate "2020.09.26"]
[EventType "swiss"]
[EventCountry "ITA"]
[SourceTitle "playchess.com"]
[Source "ChessBase"]
[SourceQuality "1"]
[TimeControl "40/5400+30:1800+30"]

1. e4 {[%emt 0:00:00]} c6 {[%emt 0:00:52]} 2. d4 {[%emt 0:00:00]} d5 {[%emt 0:00:02]} 3. e5 {[%emt 0:00:00]} Bf5 {[%emt 0:00:17]} 4. Nf3 {[%emt 0:00:00]} e6 {[%emt 0:00:02]} 5. Be2 {[%emt 0:00:06]} Nd7 {[%emt 0:00:44]} 6. O-O {[%emt 0:00:11]} h6 {[%emt 0:00:04]} 7. Nbd2 {[%emt 0:00:12]} Ne7 {[%emt 0:00:05]} 8. Nb3 {[%emt 0:00:13]} g5 {[%emt 0:00:05]} 9. a4 {[%emt 0:00:17]} Bg7 {[%emt 0:00:34]} 10. a5 {[%emt 0:00:17]} Qc7 {[%emt 0:00:54]} 11. Bd2 {[%emt 0:00:09]} c5 {[%emt 0:13:36]} 12. Nxc5 {[%emt 0:00:10]} Nxc5 {[%emt 0:00:04]} 13. dxc5 {[%emt 0:00:04]} Qxc5 {[%emt 0:01:20]} 14. c3 {[%emt 0:00:07]} O-O {[%emt 0:05:33]} 15. Be3 {[%emt 0:10:48]} Qc7 {[%emt 0:01:18]} 16. h4 {[%emt 0:00:19]} g4 {[%emt 0:14:21]} 17. Nd4 {[%emt 0:00:08]} Qxe5 {[%emt 0:00:14]} 18. Bxg4 {[%emt 0:04:20]} Bxg4 {[%emt 0:01:25]} 19. Qxg4 {[%emt 0:00:06]} Qf6 {[%emt 0:15:06]} 20. a6 {[%emt 0:07:54]} b6 {[%emt 0:01:50]} 21. Rfe1 {[%emt 0:09:36]} e5 {[%emt 0:02:43]} 22. Nf3 {[%emt 0:10:53]} Nc6 {[%emt 0:07:15]} 23. b4 {[%emt 0:07:40]} b5 {[%emt 0:04:57]} 24. Bc5 {[%emt 0:07:51]} Rfe8 {[%emt 0:00:11]} 25. Rad1 {[%emt 0:03:08]} Rad8 {[%emt 0:01:04]} 26. Rd2 {[%emt 0:02:58]} Kh7 {[%emt 0:03:12]} 27. Red1 {[%emt 0:07:45]} Qe6 {[%emt 0:00:07]} 28. Qh5 {[%emt 0:01:57]} Kg8 {[%emt 0:01:08]} 29. Nh2 {[%emt 0:02:18]} f5 {[%emt 0:02:53]} 30. Rxd5 {[%emt 0:01:03]} Rxd5 {[%emt 0:01:09]} 31. Rxd5 {[%emt 0:00:05]} Qxd5 {[%emt 0:00:41]} 32. Qxe8+ {[%emt 0:00:07]} Kh7 {[%emt 0:00:04]} 33. h5 {[%emt 0:05:45]} e4 {[%emt 0:01:45]} 34. Qg6+ {[%emt 0:00:41]} Kh8 {[%emt 0:00:20]} 35. Qe8+ {[%emt 0:07:05]} Kh7 {[%emt 0:00:04]} 36. Qg6+ {[%emt 0:00:12]} Kh8 {[%emt 0:00:01]} 37. Be3 {[%emt 0:01:01]} Ne5 {[%emt 0:04:26]} 38. Qe8+ {[%emt 0:01:49]} Kh7 {[%emt 0:00:15]} 39. Bxa7 {[%emt 0:01:32]} Qd1+ {[%emt 0:06:33]} 40. Nf1 {[%emt 0:00:06]} Qg4 {[%emt 0:02:06]} 41. Bb8 {[%emt 0:22:18]} Nf3+ {[%emt 0:05:25]} 42. Kh1 {[%emt 0:00:05]} Qh4+ {[%emt 0:03:39]} 43. Nh2 {[%emt 0:01:03]} Nxh2 {[%emt 0:04:45]} 44. Bxh2 {[%emt 0:00:17]} Qxf2 {[%emt 0:01:32]} 45. Qg6+ {[%emt 0:02:05]} Kh8 {[%emt 0:00:08]} 46. Qg3 {[%emt 0:01:45]} Qf1+ {[%emt 0:03:14]} 47. Bg1 {[%emt 0:00:04]} f4 {[%emt 0:03:21]} 48. Qg4 {[%emt 0:04:48]} f3 {[%emt 0:03:35]} 49. a7 {[%emt 0:01:09]} fxg2+ {[%emt 0:00:37]} 50. Qxg2 {[%emt 0:00:27]} 1-0

[Event "11th Dolomiti Open 2020"]
[Site "Forni di Sopra"]
[Date "2020.10.03"]
[Round "9.7"]
[White "Simonetto, Andrea"]
[Black "Fecker, Noah"]
[Result "1/2-1/2"]
[ECO "B13"]
[WhiteElo "2195"]
[BlackElo "2345"]
[Annotator "ChessBase"]
[PlyCount "70"]
[EventDate "2020.09.26"]
[EventType "swiss"]
[EventCountry "ITA"]
[SourceTitle "playchess.com"]
[Source "ChessBase"]
[SourceQuality "1"]
[TimeControl "40/5400+30:1800+30"]

1. Nf3 {[%emt 1:30:30]} c5 {[%emt 0:00:00]} 2. e3 {[%emt 0:00:00]} Nc6 {[%emt 0:00:00]} 3. d4 {[%emt 0:00:00]} cxd4 {[%emt 0:00:27]} 4. exd4 {[%emt 0:00:00]} d5 {[%emt 0:00:03]} 5. c4 {[%emt 0:00:00]} Nf6 {[%emt 0:00:06]} 6. Nc3 {[%emt 0:00:00]} Be6 {[%emt 0:00:06]} 7. Bg5 {[%emt 0:00:00]} g6 {[%emt 0:05:59]} 8. Bxf6 {[%emt 0:00:00]} exf6 {[%emt 0:00:10]} 9. c5 {[%emt 0:00:00]} Bg7 {[%emt 0:06:51]} 10. Bb5 {[%emt 0:00:00]} O-O {[%emt 0:02:11]} 11. Qa4 {[%emt 0:00:00]} Ne7 {[%emt 0:06:35]} 12. O-O {[%emt 0:00:00]} g5 {[%emt 0:04:04]} 13. Rfe1 {[%emt 0:00:00]} a6 {[%emt 0:08:18]} 14. Bd3 {[%emt 0:00:00]} Ng6 {[%emt 0:04:23]} 15. g3 {[%emt 0:00:00]} f5 {[%emt 0:09:14]} 16. Qc2 {[%emt 0:00:00]} f4 {[%emt 0:06:00]} 17. b4 {[%emt 0:00:00]} Re8 {[%emt 0:11:11]} 18. Rab1 {[%emt 0:00:00]} Rc8 {[%emt 0:01:05]} 19. Na4 {[%emt 0:00:00]} fxg3 {[%emt 0:03:11]} 20. hxg3 {[%emt 0:00:00]} g4 {[%emt 0:01:50]} 21. Ne5 {[%emt 0:00:00]} Qg5 {[%emt 0:01:16]} 22. Nb6 {[%emt 0:00:00]} Bxe5 {[%emt 0:03:40]} 23. Bxg6 {[%emt 0:00:00]} hxg6 {[%emt 0:03:38]} 24. Rxe5 {[%emt 0:00:00]} Bf5 {[%emt 0:00:23]} 25. Rxf5 {[%emt 0:00:00]} gxf5 {[%emt 0:00:54]} 26. Nxc8 {[%emt 0:00:00]} Rxc8 {[%emt 0:00:13]} 27. Re1 {[%emt 0:00:00]} Kg7 {[%emt 0:05:13]} 28. Qe2 {[%emt 0:00:00]} Qh6 {[%emt 0:06:12]} 29. Qe5+ {[%emt 0:00:00]} Kg6 {[%emt 0:00:05]} 30. Qxd5 {[%emt 0:00:00]} Rh8 {[%emt 0:00:02]} 31. Qxb7 {[%emt 0:00:00]} Qd2 {[%emt 0:00:44]} 32. Qe7 {[%emt 0:01:45]} Qh6 {[%emt 0:01:16]} 33. Qh4 {[%emt 0:04:08]} Qg7 {[%emt 0:01:04]} 34. Qe7 {[%emt 0:00:01]} Qh6 {[%emt 0:00:01]} 35. Qb7 {[%emt 0:04:04]} Qd2 {[%emt 0:00:14]} 1/2-1/2

[Event "11th Dolomiti Open 2020"]
[Site "Forni di Sopra"]
[Date "2020.10.03"]
[Round "9.9"]
[White "Sirletti, Sonia"]
[Black "Bisignano, Giuseppe"]
[Result "1-0"]
[ECO "D05"]
[WhiteElo "1804"]
[BlackElo "1818"]
[Annotator "NA"]
[PlyCount "46"]
[EventDate "2020.09.26"]
[EventType "swiss"]
[EventCountry "ITA"]
[SourceTitle "playchess.com"]
[Source "ChessBase"]
[SourceQuality "1"]
[TimeControl "40/5400+30:1800+30"]

1. d4 {[%emt 0:00:06]} Nf6 {[%emt 0:00:00]} 2. Nf3 {[%emt 0:00:06]} e6 {[%emt 0:00:00]} 3. e3 {[%emt 0:00:07]} c5 {[%emt 0:00:00]} 4. Bd3 {[%emt 0:00:11]} Nc6 {[%emt 0:00:23]} 5. O-O {[%emt 0:00:17]} d5 {[%emt 0:02:21]} 6. b3 {[%emt 0:00:19]} cxd4 {[%emt 0:00:27]} 7. exd4 {[%emt 0:00:07]} Bd6 {[%emt 0:01:23]} 8. Bb2 {[%emt 0:00:13]} O-O {[%emt 0:00:51]} 9. Nbd2 {[%emt 0:00:15]} Qc7 {[%emt 0:01:50]} 10. a3 {[%emt 0:01:22]} a6 {[%emt 0:07:05]} 11. Qe2 {[%emt 0:01:08]} Bd7 {[%emt 0:03:14]} 12. Ne5 {[%emt 0:04:11]} Be8 {[%emt 0:04:41]} 13. f4 {[%emt 0:02:59]} g6 {[%emt 0:04:18]} 14. Kh1 {[%emt 0:04:03]} Kg7 {[%emt 0:08:36]} 15. Rf3 {[%emt 0:16:07]} h5 {[%emt 0:08:33]} 16. Rh3 {[%emt 0:05:15]} Ne7 {[%emt 0:01:30]} 17. c4 {[%emt 0:05:18]} Nf5 {[%emt 0:03:36]} 18. Rc1 {[%emt 0:00:41]} Rc8 {[%emt 0:04:21]} 19. cxd5 {[%emt 0:14:28]} Qxc1+ {[%emt 0:01:07]} 20. Bxc1 {[%emt 0:00:08]} Rxc1+ {[%emt 0:00:06]} 21. Nf1 {[%emt 0:00:06]} Nxd4 {[%emt 0:00:33]} 22. Qb2 {[%emt 0:01:34]} Rd1 {[%emt 0:08:02]} 23. Qxd4 {[%emt 0:03:39]} Bb5 {[%emt 0:00:33]} 1-0